[Event "Schack-SM 2024: Mastarklassen"]
[Site "Fortnox Arena, Hejaregatan 5, Vaxjo, Sweden"]
[Date "2024.07.05"]
[Round "7.1"]
[White "Mashhadi, Peyman"]
[Black "Muntean, Victor"]
[Result "1-0"]
[TimeControl "90 minutes for 40 moves + 30 minutes for the rest of the game + 30 seconds per move from move one."]
[WhiteElo "2116"]
[BlackElo "2136"]

1. e4 {[%clk 01:30:52]} {[%emt 00:00:06]} e5 {[%clk 01:30:53]} {[%emt
00:00:08]} 2. Nf3 {[%clk 01:31:12]} {[%emt 00:00:09]} Nc6 {[%clk 01:31:18]}
{[%emt 00:00:06]} 3. Bb5 {[%clk 01:31:23]} {[%emt 00:00:18]} a6 {[%clk
01:31:38]} {[%emt 00:00:11]} 4. Ba4 {[%clk 01:31:47]} {[%emt 00:00:06]} Nf6
{[%clk 01:31:37]} {[%emt 00:00:30]} 5. d3 {[%clk 01:31:52]} {[%emt 00:00:25]}
d6 {[%clk 01:31:49]} {[%emt 00:00:19]} 6. c3 {[%clk 01:29:58]} {[%emt
00:02:23]} Be7 {[%clk 01:31:38]} {[%emt 00:00:43]} 7. O-O {[%clk 01:26:59]}
{[%emt 00:03:28]} h6 {[%clk 01:31:59]} {[%emt 00:00:10]} 8. Nbd2 {[%clk
01:23:06]} {[%emt 00:04:22]} g5 {[%clk 01:21:32]} {[%emt 00:10:59]} 9. Bxc6+
{[%clk 01:15:24]} {[%emt 00:08:12]} bxc6 {[%clk 01:21:42]} {[%emt 00:00:21]} 10.
d4 {[%clk 01:15:07]} {[%emt 00:00:45]} g4 {[%clk 01:18:27]} {[%emt 00:03:47]}
11. dxe5 {[%clk 01:05:44]} {[%emt 00:09:52]} gxf3 {[%clk 01:17:55]} {[%emt
00:01:02]} 12. exf6 {[%clk 01:05:56]} {[%emt 00:00:17]} fxg2 {[%clk 01:18:14]}
{[%emt 00:00:12]} 13. Re1 {[%clk 01:06:17]} {[%emt 00:00:09]} Bxf6 {[%clk
01:18:32]} {[%emt 00:00:12]} 14. Qh5 {[%clk 00:52:49]} {[%emt 00:13:57]} Rg8
{[%clk 01:05:12]} {[%emt 00:13:51]} 15. Nc4 {[%clk 00:51:11]} {[%emt 00:02:07]}
Be6 {[%clk 00:56:45]} {[%emt 00:08:57]} 16. e5 {[%clk 00:45:59]} {[%emt
00:05:42]} dxe5 {[%clk 00:53:53]} {[%emt 00:03:24]} 17. Nxe5 {[%clk 00:46:07]}
{[%emt 00:00:22]} Qd5 {[%clk 00:50:59]} {[%emt 00:03:24]} 18. c4 {[%clk
00:40:55]} {[%emt 00:05:41]} Qa5 {[%clk 00:50:53]} {[%emt 00:00:36]} 19. Bd2
{[%clk 00:38:06]} {[%emt 00:03:18]} Qxd2 {[%clk 00:42:49]} {[%emt 00:08:34]} 20.
Nxf7 {[%clk 00:38:17]} {[%emt 00:00:20]} Ke7 {[%clk 00:42:49]} {[%emt
00:00:30]} 21. Rad1 {[%clk 00:37:34]} {[%emt 00:01:14]} Qxd1 {[%clk 00:42:18]}
{[%emt 00:01:00]} 22. Qxd1 {[%clk 00:36:14]} {[%emt 00:01:50]} Kxf7 {[%clk
00:41:06]} {[%emt 00:01:42]} 23. Qh5+ {[%clk 00:36:32]} {[%emt 00:00:12]} Rg6
{[%clk 00:38:26]} {[%emt 00:03:10]} 24. Rxe6 {[%clk 00:36:28]} {[%emt
00:00:34]} 1-0

[Event "Schack-SM 2024: Mastarklassen"]
[Site "Fortnox Arena, Hejaregatan 5, Vaxjo, Sweden"]
[Date "2024.07.05"]
[Round "7.2"]
[White "Ljung, Harald"]
[Black "Liden, Tommy"]
[Result "1-0"]
[TimeControl "90 minutes for 40 moves + 30 minutes for the rest of the game + 30 seconds per move from move one."]
[WhiteElo "2101"]
[BlackElo "2123"]

1. d4 {[%clk 01:30:50]} {[%emt 00:00:09]} d5 {[%clk 01:30:57]} {[%emt
00:00:04]} 2. Nf3 {[%clk 01:31:09]} {[%emt 00:00:09]} e6 {[%clk 01:31:24]}
{[%emt 00:00:05]} 3. g3 {[%clk 01:31:18]} {[%emt 00:00:20]} c6 {[%clk
01:31:44]} {[%emt 00:00:11]} 4. Bg2 {[%clk 01:31:43]} {[%emt 00:00:06]} Bd6
{[%clk 01:31:29]} {[%emt 00:00:45]} 5. O-O {[%clk 01:32:05]} {[%emt 00:00:06]}
f5 {[%clk 01:31:36]} {[%emt 00:00:23]} 6. c4 {[%clk 01:32:24]} {[%emt
00:00:11]} Nf6 {[%clk 01:31:31]} {[%emt 00:00:36]} 7. b3 {[%clk 01:32:48]}
{[%emt 00:00:05]} Qe7 {[%clk 01:26:58]} {[%emt 00:05:03]} 8. Bb2 {[%clk
01:32:30]} {[%emt 00:00:49]} Nbd7 {[%clk 01:26:37]} {[%emt 00:00:50]} 9. Nbd2
{[%clk 01:26:32]} {[%emt 00:06:27]} Ne4 {[%clk 01:23:28]} {[%emt 00:03:40]} 10.
Ne5 {[%clk 01:26:01]} {[%emt 00:00:59]} Nxe5 {[%clk 01:23:37]} {[%emt
00:00:23]} 11. dxe5 {[%clk 01:26:26]} {[%emt 00:00:06]} Bc5 {[%clk 01:23:42]}
{[%emt 00:00:24]} 12. Qc2 {[%clk 01:16:10]} {[%emt 00:10:47]} O-O {[%clk
01:21:00]} {[%emt 00:03:12]} 13. Rac1 {[%clk 01:15:13]} {[%emt 00:01:27]} b6
{[%clk 01:13:40]} {[%emt 00:07:50]} 14. e3 {[%clk 01:06:27]} {[%emt 00:09:16]}
a5 {[%clk 01:03:01]} {[%emt 00:11:09]} 15. Nf3 {[%clk 01:04:16]} {[%emt
00:02:39]} Ba6 {[%clk 01:01:42]} {[%emt 00:01:52]} 16. Nd4 {[%clk 01:03:19]}
{[%emt 00:01:27]} Rac8 {[%clk 01:00:31]} {[%emt 00:01:39]} 17. f3 {[%clk
00:54:17]} {[%emt 00:09:33]} Ng5 {[%clk 00:57:17]} {[%emt 00:03:43]} 18. f4
{[%clk 00:52:51]} {[%emt 00:01:57]} Ne4 {[%clk 00:56:41]} {[%emt 00:01:05]} 19.
Bxe4 {[%clk 00:52:27]} {[%emt 00:00:55]} fxe4 {[%clk 00:56:07]} {[%emt
00:01:03]} 20. g4 {[%clk 00:51:24]} {[%emt 00:01:35]} b5 {[%clk 00:51:02]}
{[%emt 00:05:33]} 21. cxb5 {[%clk 00:50:05]} {[%emt 00:01:51]} cxb5 {[%clk
00:51:30]} {[%emt 00:00:01]} 22. Qe2 {[%clk 00:43:34]} {[%emt 00:07:01]} Qa7
{[%clk 00:49:32]} {[%emt 00:02:28]} 23. Rfd1 {[%clk 00:35:47]} {[%emt
00:08:17]} b4 {[%clk 00:48:54]} {[%emt 00:01:08]} 24. Qf2 {[%clk 00:35:44]}
{[%emt 00:00:33]} Bd3 {[%clk 00:44:46]} {[%emt 00:04:39]} 25. Re1 {[%clk
00:33:43]} {[%emt 00:02:32]} Qf7 {[%clk 00:41:21]} {[%emt 00:03:53]} 26. Qg3
{[%clk 00:28:19]} {[%emt 00:05:54]} Qd7 {[%clk 00:36:29]} {[%emt 00:05:21]} 27.
Qh4 {[%clk 00:17:39]} {[%emt 00:11:12]} Rc7 {[%clk 00:29:58]} {[%emt 00:07:00]}
28. Qg5 {[%clk 00:12:08]} {[%emt 00:06:03]} Rfc8 {[%clk 00:24:15]} {[%emt
00:06:13]} 29. Rxc5 {[%clk 00:12:25]} {[%emt 00:00:13]} Rxc5 {[%clk 00:23:37]}
{[%emt 00:01:07]} 30. f5 {[%clk 00:12:51]} {[%emt 00:00:04]} Qf7 {[%clk
00:19:06]} {[%emt 00:05:01]} 31. Nxe6 {[%clk 00:08:28]} {[%emt 00:04:53]} Rc2
{[%clk 00:19:29]} {[%emt 00:00:06]} 32. Bd4 {[%clk 00:08:50]} {[%emt 00:00:07]}
h6 {[%clk 00:18:22]} {[%emt 00:01:38]} 33. Qh4 {[%clk 00:08:21]} {[%emt
00:00:59]} Rxa2 {[%clk 00:16:21]} {[%emt 00:02:31]} 34. Nf4 {[%clk 00:04:38]}
{[%emt 00:04:13]} Rcc2 {[%clk 00:10:19]} {[%emt 00:06:31]} 35. e6 {[%clk
00:04:17]} {[%emt 00:00:52]} Qc7 {[%clk 00:10:07]} {[%emt 00:00:42]} 36. f6
{[%clk 00:03:36]} {[%emt 00:01:11]} Rxh2 {[%clk 00:01:44]} {[%emt 00:08:52]} 37.
f7+ {[%clk 00:03:17]} {[%emt 00:00:50]} Kh7 {[%clk 00:01:34]} {[%emt 00:00:40]}
38. Qxh2 {[%clk 00:03:14]} {[%emt 00:00:35]} Rxh2 {[%clk 00:01:48]} {[%emt
00:00:14]} 39. f8=Q {[%emt 00:00:09]} Rh4 {[%clk 00:01:11]} {[%emt 00:01:06]}
40. Qf5+ {[%clk 00:03:34]} {[%emt 00:00:32]} Kg8 {[%clk 00:01:12]} {[%emt
00:00:29]} 41. Be5 {[%clk 00:03:47]} {[%emt 00:00:16]} Qa7 {[%clk 00:25:29]}
{[%emt 00:06:13]} 42. Ng6 {[%clk 00:33:28]} {[%emt 00:00:49]} Rh3 {[%clk
00:25:07]} {[%emt 00:00:53]} 43. Qf8+ {[%clk 00:33:39]} {[%emt 00:00:17]} Kh7
{[%clk 00:25:24]} {[%emt 00:00:14]} 44. Ne7 {[%clk 00:34:00]} 1-0

[Event "Schack-SM 2024: Mastarklassen"]
[Site "Fortnox Arena, Hejaregatan 5, Vaxjo, Sweden"]
[Date "2024.07.05"]
[Round "7.3"]
[White "Tuomainen, Felix"]
[Black "Mardell, Jimmy"]
[Result "1/2-1/2"]
[TimeControl "90 minutes for 40 moves + 30 minutes for the rest of the game + 30 seconds per move from move one."]
[WhiteTitle "FM"]
[WhiteElo "2255"]
[BlackElo "2186"]

1. d4 {[%clk 01:30:57]} {[%emt 00:00:02]} d5 {[%clk 01:30:54]} {[%emt
00:00:06]} 2. Nf3 {[%clk 01:31:07]} {[%emt 00:00:20]} Nf6 {[%clk 01:31:15]}
{[%emt 00:00:09]} 3. c4 {[%clk 01:31:10]} {[%emt 00:00:29]} c6 {[%clk
01:31:33]} {[%emt 00:00:11]} 4. Nc3 {[%clk 01:31:34]} {[%emt 00:00:06]} dxc4
{[%clk 01:31:29]} {[%emt 00:00:34]} 5. a4 {[%clk 01:30:39]} {[%emt 00:01:25]}
Bf5 {[%clk 01:30:48]} {[%emt 00:01:10]} 6. e3 {[%clk 01:30:57]} {[%emt
00:00:13]} e6 {[%clk 01:30:35]} {[%emt 00:00:44]} 7. Bxc4 {[%clk 01:31:22]}
{[%emt 00:00:04]} Bb4 {[%clk 01:29:05]} {[%emt 00:02:01]} 8. O-O {[%clk
01:31:01]} {[%emt 00:00:50]} O-O {[%clk 01:29:25]} {[%emt 00:00:11]} 9. Bd2
{[%clk 01:27:06]} {[%emt 00:04:25]} Nbd7 {[%clk 01:18:19]} {[%emt 00:11:35]} 10.
Qe2 {[%clk 01:20:59]} {[%emt 00:06:35]} Bg6 {[%clk 01:16:59]} {[%emt 00:01:53]}
11. Rfd1 {[%clk 01:17:28]} {[%emt 00:04:01]} Qe7 {[%clk 01:12:22]} {[%emt
00:05:06]} 12. Bd3 {[%clk 01:14:22]} {[%emt 00:03:36]} Bf5 {[%emt 00:06:46]} 13.
Be4 Bxe4 {[%clk 01:06:05]} 14. Qd3 {[%clk 01:14:19]} {[%emt 00:00:35]} 1/2-1/2

[Event "Schack-SM 2024: Mastarklassen"]
[Site "Fortnox Arena, Hejaregatan 5, Vaxjo, Sweden"]
[Date "2024.07.05"]
[Round "7.4"]
[White "Collett, Peter"]
[Black "Landgren, Andreas"]
[Result "1/2-1/2"]
[TimeControl "90 minutes for 40 moves + 30 minutes for the rest of the game + 30 seconds per move from move one."]
[WhiteTitle "CM"]
[BlackTitle "FM"]
[WhiteElo "2116"]
[BlackElo "2243"]

1. d4 {[%clk 01:30:56]} {[%emt 00:00:04]} Nf6 {[%clk 01:30:54]} {[%emt
00:00:06]} 2. c4 {[%clk 01:31:17]} {[%emt 00:00:08]} e6 {[%clk 01:31:19]}
{[%emt 00:00:07]} 3. Nc3 {[%clk 01:31:40]} {[%emt 00:00:05]} Bb4 {[%clk
01:31:44]} {[%emt 00:00:06]} 4. e3 {[%clk 01:32:01]} {[%emt 00:00:08]} O-O
{[%clk 01:32:06]} {[%emt 00:00:09]} 5. Nge2 {[%clk 01:32:22]} {[%emt 00:00:09]}
Re8 {[%clk 01:32:13]} {[%emt 00:00:23]} 6. a3 {[%clk 01:32:37]} {[%emt
00:00:16]} Bf8 {[%clk 01:32:35]} {[%emt 00:00:07]} 7. Ng3 {[%clk 01:32:43]}
{[%emt 00:00:24]} d5 {[%clk 01:31:40]} {[%emt 00:01:25]} 8. Be2 {[%clk
01:26:11]} {[%emt 00:07:00]} b6 {[%clk 01:18:09]} {[%emt 00:14:03]} 9. cxd5
{[%clk 01:20:55]} {[%emt 00:05:45]} exd5 {[%clk 01:18:19]} {[%emt 00:00:21]} 10.
O-O {[%clk 01:21:15]} {[%emt 00:00:09]} Bb7 {[%clk 01:14:48]} {[%emt 00:04:02]}
11. b4 {[%clk 01:17:01]} {[%emt 00:04:43]} g6 {[%clk 01:04:53]} {[%emt
00:10:27]} 12. Bb2 {[%clk 01:12:23]} {[%emt 00:05:07]} a6 {[%clk 00:59:35]}
{[%emt 00:05:48]} 13. Qb3 {[%clk 01:06:22]} {[%emt 00:06:30]} Nbd7 {[%clk
00:57:28]} {[%emt 00:02:38]} 14. Rad1 {[%clk 01:04:02]} {[%emt 00:02:49]} h5
{[%clk 00:52:59]} {[%emt 00:05:00]} 15. Bf3 {[%clk 01:03:12]} {[%emt 00:01:18]}
c6 {[%clk 00:52:22]} {[%emt 00:01:08]} 16. Rfe1 {[%clk 01:02:11]} {[%emt
00:01:31]} Bg7 {[%clk 00:38:08]} {[%emt 00:14:44]} 17. e4 {[%clk 00:52:02]}
{[%emt 00:10:38]} h4 {[%clk 00:33:43]} {[%emt 00:04:56]} 18. Nf1 {[%clk
00:51:58]} {[%emt 00:00:32]} dxe4 {[%clk 00:33:08]} {[%emt 00:01:07]} 19. Nxe4
{[%clk 00:50:23]} {[%emt 00:02:04]} Nxe4 {[%clk 00:27:55]} {[%emt 00:05:44]} 20.
Rxe4 {[%clk 00:48:31]} {[%emt 00:02:22]} Rxe4 {[%clk 00:26:11]} {[%emt
00:02:14]} 21. Bxe4 {[%clk 00:48:20]} {[%emt 00:00:41]} Nf8 {[%clk 00:25:45]}
{[%emt 00:00:55]} 22. d5 {[%clk 00:45:32]} {[%emt 00:03:18]} cxd5 {[%clk
00:25:55]} {[%emt 00:00:21]} 23. Bxg7 {[%clk 00:45:03]} {[%emt 00:00:58]} Kxg7
{[%clk 00:26:15]} {[%emt 00:00:10]} 24. Bxd5 {[%clk 00:35:47]} {[%emt
00:09:46]} Bxd5 {[%clk 00:26:20]} {[%emt 00:00:27]} 25. Qxd5 {[%clk 00:36:08]}
{[%emt 00:00:07]} Qxd5 {[%clk 00:25:59]} {[%emt 00:00:51]} 26. Rxd5 {[%clk
00:36:31]} {[%emt 00:00:06]} Ne6 {[%clk 00:23:29]} {[%emt 00:03:01]} 27. Rd6
{[%clk 00:33:51]} {[%emt 00:03:09]} b5 {[%clk 00:22:01]} {[%emt 00:01:58]} 28.
Rb6 {[%clk 00:31:54]} {[%emt 00:02:28]} Nd4 {[%clk 00:19:47]} {[%emt 00:02:43]}
29. Ne3 {[%clk 00:31:01]} {[%emt 00:01:23]} Rc8 {[%clk 00:16:20]} {[%emt
00:03:59]} 30. h3 {[%clk 00:31:14]} {[%emt 00:00:16]} Rc6 {[%clk 00:16:34]}
{[%emt 00:00:16]} 1/2-1/2

[Event "Schack-SM 2024: Mastarklassen"]
[Site "Fortnox Arena, Hejaregatan 5, Vaxjo, Sweden"]
[Date "2024.07.05"]
[Round "7.5"]
[White "Joensson, Jacob"]
[Black "Bjorkman, Filip"]
[Result "1-0"]
[TimeControl "90 minutes for 40 moves + 30 minutes for the rest of the game + 30 seconds per move from move one."]
[WhiteElo "2068"]
[BlackElo "2116"]

1. d4 {[%clk 01:30:58]} {[%emt 00:00:02]} Nf6 {[%clk 01:30:55]} {[%emt
00:00:04]} 2. c4 {[%clk 01:31:23]} {[%emt 00:00:05]} g6 {[%clk 01:31:19]}
{[%emt 00:00:05]} 3. Nc3 {[%clk 01:31:50]} {[%emt 00:00:05]} d5 {[%clk
01:31:43]} {[%emt 00:00:05]} 4. cxd5 {[%clk 01:32:16]} {[%emt 00:00:05]} Nxd5
{[%clk 01:32:07]} {[%emt 00:00:06]} 5. e4 {[%clk 01:32:42]} {[%emt 00:00:04]}
Nxc3 {[%clk 01:32:31]} {[%emt 00:00:06]} 6. bxc3 {[%clk 01:33:09]} {[%emt
00:00:05]} Bg7 {[%clk 01:32:52]} {[%emt 00:00:08]} 7. Bc4 {[%clk 01:33:34]}
{[%emt 00:00:04]} c5 {[%clk 01:33:14]} {[%emt 00:00:09]} 8. Ne2 {[%clk
01:34:00]} {[%emt 00:00:05]} O-O {[%clk 01:33:31]} {[%emt 00:00:12]} 9. O-O
{[%clk 01:34:24]} {[%emt 00:00:06]} Nc6 {[%clk 01:33:54]} {[%emt 00:00:07]} 10.
Be3 {[%clk 01:34:49]} {[%emt 00:00:04]} Bg4 {[%clk 01:31:51]} {[%emt 00:02:32]}
11. f3 {[%clk 01:35:14]} {[%emt 00:00:05]} Na5 {[%clk 01:31:54]} {[%emt
00:00:27]} 12. Bd3 {[%clk 01:35:38]} {[%emt 00:00:06]} cxd4 {[%clk 01:32:17]}
{[%emt 00:00:08]} 13. cxd4 {[%clk 01:36:03]} {[%emt 00:00:04]} Be6 {[%clk
01:32:42]} {[%emt 00:00:05]} 14. Rc1 {[%clk 01:36:29]} {[%emt 00:00:04]} Bxa2
{[%clk 01:10:20]} {[%emt 00:22:52]} 15. Qa4 {[%clk 01:36:53]} {[%emt 00:00:07]}
Be6 {[%clk 01:06:16]} {[%emt 00:04:33]} 16. d5 {[%clk 01:37:19]} {[%emt
00:00:05]} b6 {[%clk 00:51:27]} {[%emt 00:15:19]} 17. Qa3 {[%clk 01:36:28]}
{[%emt 00:01:19]} Bd7 {[%clk 00:41:40]} {[%emt 00:10:18]} 18. Nd4 {[%clk
01:12:37]} {[%emt 00:24:20]} Re8 {[%clk 00:36:06]} {[%emt 00:06:06]} 19. Rfd1
{[%clk 01:02:12]} {[%emt 00:10:53]} e6 {[%clk 00:24:12]} {[%emt 00:12:25]} 20.
dxe6 {[%clk 00:49:21]} {[%emt 00:13:21]} fxe6 {[%clk 00:21:02]} {[%emt
00:03:41]} 21. Ba6 {[%clk 00:34:57]} {[%emt 00:14:53]} Qf6 {[%clk 00:15:10]}
{[%emt 00:06:23]} 22. Qa2 {[%clk 00:28:33]} {[%emt 00:06:55]} Kh8 {[%clk
00:14:18]} {[%emt 00:01:22]} 23. Rc7 {[%clk 00:25:15]} {[%emt 00:03:47]} Red8
{[%clk 00:10:38]} {[%emt 00:04:10]} 24. Rdc1 {[%clk 00:25:39]} {[%emt
00:00:07]} e5 {[%clk 00:09:31]} {[%emt 00:01:36]} 25. Ne2 {[%clk 00:24:01]}
{[%emt 00:02:07]} Be6 {[%clk 00:09:38]} {[%emt 00:00:23]} 26. Qa4 {[%clk
00:15:23]} {[%emt 00:09:08]} Bb3 {[%clk 00:08:27]} {[%emt 00:01:41]} 27. Qb5
{[%clk 00:12:45]} {[%emt 00:03:08]} Bg8 {[%clk 00:08:02]} {[%emt 00:00:55]} 28.
Bb7 {[%clk 00:10:35]} {[%emt 00:02:41]} Nxb7 {[%clk 00:07:16]} {[%emt
00:01:15]} 29. Rxb7 {[%clk 00:10:58]} {[%emt 00:00:07]} Rdb8 {[%clk 00:07:02]}
{[%emt 00:00:43]} 30. Rxb8 {[%clk 00:08:28]} {[%emt 00:03:02]} Rxb8 {[%clk
00:07:12]} {[%emt 00:00:19]} 31. Rc7 {[%clk 00:08:53]} {[%emt 00:00:04]} a6
{[%clk 00:01:01]} {[%emt 00:06:43]} 32. Qxa6 {[%clk 00:06:42]} {[%emt
00:02:41]} Qd8 {[%clk 00:01:06]} {[%emt 00:00:23]} 33. Qa7 {[%clk 00:03:35]}
{[%emt 00:03:37]} Ra8 {[%clk 00:01:06]} {[%emt 00:00:29]} 34. Qxb6 {[%clk
00:02:39]} {[%emt 00:01:26]} Qd3 {[%clk 00:00:59]} {[%emt 00:00:39]} 35. Nc1
{[%clk 00:01:55]} {[%emt 00:01:13]} Ra1 {[%clk 00:00:35]} {[%emt 00:00:54]} 36.
Kf2 {[%clk 00:02:05]} {[%emt 00:00:21]} Qd8 {[%clk 00:01:02]} {[%emt 00:00:03]}
37. g3 {[%clk 00:00:43]} {[%emt 00:01:52]} Ra3 {[%clk 00:01:24]} {[%emt
00:00:09]} 38. Rxg7 {[%clk 00:00:48]} {[%emt 00:00:23]} Qxb6 {[%clk 00:00:59]}
{[%emt 00:00:55]} 39. Rxg8+ {[%clk 00:01:12]} {[%emt 00:00:07]} Kxg8 {[%clk
00:01:27]} {[%emt 00:00:01]} 40. Bxb6 {[%clk 00:01:35]} {[%emt 00:00:07]} Kf7
{[%clk 00:01:07]} {[%emt 00:00:50]} 41. Ne2 {[%clk 00:00:35]} {[%emt 00:01:30]}
Ke6 {[%clk 00:01:21]} {[%emt 00:00:16]} 42. g4 {[%clk 00:28:53]} {[%emt
00:02:11]} Ra2 {[%clk 00:31:22]} {[%emt 00:00:30]} 43. Bc5 {[%clk 00:28:43]}
{[%emt 00:00:39]} Ra5 {[%clk 00:31:37]} {[%emt 00:00:15]} 44. Bb4 {[%clk
00:29:04]} {[%emt 00:00:10]} Ra4 {[%clk 00:31:59]} {[%emt 00:00:08]} 45. Bc3
{[%clk 00:29:28]} {[%emt 00:00:05]} Ra2 {[%clk 00:31:57]} {[%emt 00:00:32]} 46.
Ke3 {[%clk 00:28:57]} {[%emt 00:01:02]} Ra4 {[%clk 00:32:09]} {[%emt 00:00:17]}
47. Nc1 {[%clk 00:26:28]} {[%emt 00:02:59]} Rc4 {[%clk 00:32:15]} {[%emt
00:00:26]} 48. Kd2 {[%clk 00:26:48]} {[%emt 00:00:09]} Ra4 {[%clk 00:32:38]}
{[%emt 00:00:05]} 49. Nd3 {[%clk 00:27:11]} {[%emt 00:00:08]} 1-0

[Event "Schack-SM 2024: Mastarklassen"]
[Site "Fortnox Arena, Hejaregatan 5, Vaxjo, Sweden"]
[Date "2024.07.05"]
[Round "7.6"]
[White "Lind, Jan-Olov"]
[Black "Nygren, David"]
[Result "0-1"]
[TimeControl "90 minutes for 40 moves + 30 minutes for the rest of the game + 30 seconds per move from move one."]
[WhiteElo "2135"]
[BlackElo "2132"]

1. e4 {[%clk 01:30:53]} {[%emt 00:00:06]} e6 {[%clk 01:30:44]} {[%emt
00:00:17]} 2. d3 {[%clk 01:31:07]} {[%emt 00:00:16]} d5 {[%clk 01:30:47]}
{[%emt 00:00:28]} 3. Nd2 {[%clk 01:31:28]} {[%emt 00:00:07]} Nf6 {[%clk
01:30:47]} {[%emt 00:00:30]} 4. Ngf3 {[%clk 01:31:39]} {[%emt 00:00:20]} Be7
{[%clk 01:30:44]} {[%emt 00:00:34]} 5. g3 {[%clk 01:31:40]} {[%emt 00:00:29]}
O-O {[%clk 01:30:39]} {[%emt 00:00:35]} 6. Bg2 {[%clk 01:32:02]} {[%emt
00:00:07]} a5 {[%clk 01:30:19]} {[%emt 00:00:51]} 7. O-O {[%clk 01:29:59]}
{[%emt 00:02:32]} a4 {[%clk 01:29:58]} {[%emt 00:00:52]} 8. a3 {[%clk
01:30:16]} {[%emt 00:00:13]} Nc6 {[%clk 01:28:16]} {[%emt 00:02:12]} 9. Qe2
{[%clk 01:12:13]} {[%emt 00:18:32]} dxe4 {[%clk 01:22:51]} {[%emt 00:05:56]} 10.
Nxe4 {[%clk 01:12:16]} {[%emt 00:00:27]} e5 {[%clk 01:21:19]} {[%emt 00:02:03]}
11. Nxf6+ {[%clk 01:00:35]} {[%emt 00:12:10]} Bxf6 {[%clk 01:21:24]} {[%emt
00:00:26]} 12. h4 {[%clk 00:58:40]} {[%emt 00:02:23]} h6 {[%clk 01:18:13]}
{[%emt 00:03:40]} 13. Qe4 {[%clk 00:53:05]} {[%emt 00:06:05]} Be6 {[%clk
01:13:09]} {[%emt 00:05:36]} 14. Bd2 {[%clk 00:41:11]} {[%emt 00:12:23]} Re8
{[%clk 01:06:49]} {[%emt 00:06:50]} 15. Rfe1 {[%clk 00:38:35]} {[%emt
00:03:05]} Qd7 {[%clk 00:59:57]} {[%emt 00:07:22]} 16. Bc3 {[%clk 00:34:01]}
{[%emt 00:05:04]} Bd5 {[%clk 00:52:39]} {[%emt 00:07:48]} 17. Qe3 {[%clk
00:33:50]} {[%emt 00:00:42]} Nd4 {[%clk 00:49:58]} {[%emt 00:03:12]} 18. Bxd4
{[%clk 00:18:33]} {[%emt 00:15:45]} exd4 {[%clk 00:50:06]} {[%emt 00:00:22]} 19.
Qf4 {[%clk 00:18:16]} {[%emt 00:00:48]} Qc6 {[%clk 00:43:36]} {[%emt 00:07:00]}
20. Rxe8+ {[%clk 00:18:29]} {[%emt 00:00:16]} Rxe8 {[%clk 00:43:35]} {[%emt
00:00:32]} 21. Re1 {[%clk 00:18:35]} {[%emt 00:00:23]} Rxe1+ {[%clk 00:41:25]}
{[%emt 00:02:42]} 22. Nxe1 {[%clk 00:18:58]} {[%emt 00:00:06]} Bxg2 {[%clk
00:41:27]} {[%emt 00:00:28]} 23. Nxg2 {[%clk 00:19:21]} {[%emt 00:00:06]} Qxc2
{[%clk 00:40:09]} {[%emt 00:01:49]} 24. Qf5 {[%clk 00:11:40]} {[%emt 00:08:11]}
Qc1+ {[%clk 00:31:17]} {[%emt 00:09:17]} 25. Kh2 {[%clk 00:11:37]} {[%emt
00:00:35]} Qc6 {[%clk 00:28:45]} {[%emt 00:03:03]} 26. Qc8+ {[%clk 00:08:11]}
{[%emt 00:03:57]} Kh7 {[%clk 00:28:59]} {[%emt 00:00:16]} 27. Nf4 {[%clk
00:07:29]} {[%emt 00:01:12]} Be7 {[%clk 00:18:22]} {[%emt 00:11:06]} 28. h5
{[%clk 00:06:59]} {[%emt 00:01:01]} Bd6 {[%clk 00:16:43]} {[%emt 00:02:04]} 29.
Qf5+ {[%clk 00:06:17]} {[%emt 00:01:16]} Kg8 {[%clk 00:16:46]} {[%emt
00:00:27]} 30. Qc8+ {[%clk 00:05:02]} {[%emt 00:01:45]} Bf8 {[%clk 00:16:44]}
{[%emt 00:00:32]} 31. Qd8 {[%clk 00:05:00]} {[%emt 00:00:32]} Qd6 {[%clk
00:16:06]} {[%emt 00:01:08]} 32. Qe8 {[%clk 00:05:06]} {[%emt 00:00:26]} c6
{[%clk 00:15:22]} {[%emt 00:01:12]} 33. Qa8 {[%clk 00:04:15]} {[%emt 00:01:21]}
b5 {[%clk 00:15:24]} {[%emt 00:00:29]} 34. Qe8 {[%clk 00:04:33]} {[%emt
00:00:11]} Qc5 {[%clk 00:14:02]} {[%emt 00:01:48]} 35. Kg2 {[%clk 00:03:36]}
{[%emt 00:01:31]} Qc2 {[%clk 00:11:40]} {[%emt 00:02:49]} 36. Qc8 {[%clk
00:01:32]} {[%emt 00:02:38]} Qxb2 {[%clk 00:11:07]} {[%emt 00:01:03]} 37. Qxc6
{[%clk 00:01:29]} {[%emt 00:00:32]} Qxa3 {[%clk 00:10:27]} {[%emt 00:01:11]} 38.
Qxb5 {[%clk 00:00:49]} {[%emt 00:01:09]} Qb4 {[%clk 00:10:29]} {[%emt
00:00:27]} 39. Qd5 {[%clk 00:00:50]} {[%emt 00:00:30]} a3 {[%clk 00:08:42]}
{[%emt 00:02:17]} 40. Ng6 {[%clk 00:00:41]} {[%emt 00:00:38]} Qc5 {[%clk
00:06:47]} {[%emt 00:02:26]} 41. Qa2 {[%clk 00:28:05]} {[%emt 00:03:05]} Qc6+
{[%clk 00:34:30]} {[%emt 00:02:46]} 42. Kh2 {[%clk 00:19:58]} {[%emt 00:08:38]}
Qe6 {[%clk 00:34:37]} {[%emt 00:00:23]} 0-1